[Event "Titled Tuesday Blitz November 14 Late 2023"]
[White "Kuegel, Tobias"]
[Black "Quirke, Jeffrey"]
[WhiteFideId "4636295"]
[BlackFideId "2013029"]
[WhiteElo "2505"]
[BlackElo "2285"]
[Result "1-0"]
[Round "2"]
[TimeControl "180+1"]
[Date "2023.11.14"]
[WhiteClock "0:00:04"]
[BlackClock "0:00:00"]
[Board "138"]

1. e4 {[%clk 0:03:00]}  e6 {[%clk 0:02:59]} 2. d4 {[%clk 0:02:53]}  d5 {[%clk 0:02:59]} 3. Nc3 {[%clk 0:02:54]}  Nf6 {[%clk 0:02:59]} 4. Bg5 {[%clk 0:02:54]}  h6 {[%clk 0:02:57]} 5. Bxf6 {[%clk 0:02:52]}  Qxf6 {[%clk 0:02:58]} 6. exd5 {[%clk 0:02:38]}  Bb4 {[%clk 0:02:57]} 7. Ne2 {[%clk 0:02:35]}  exd5 {[%clk 0:02:50]} 8. a3 {[%clk 0:02:35]}  Bxc3+ {[%clk 0:02:49]} 9. Nxc3 {[%clk 0:02:36]}  c6 {[%clk 0:02:49]} 10. Qe2+ {[%clk 0:02:32]}  Be6 {[%clk 0:02:49]} 11. O-O-O {[%clk 0:02:30]}  O-O {[%clk 0:02:48]} 12. Qd2 {[%clk 0:02:17]}  Nd7 {[%clk 0:02:44]} 13. Bd3 {[%clk 0:02:16]}  Rfe8 {[%clk 0:02:35]} 14. Ne2 {[%clk 0:02:11]}  Bf5 {[%clk 0:02:32]} 15. Bxf5 {[%clk 0:01:20]}  Qxf5 {[%clk 0:02:31]} 16. Ng3 {[%clk 0:01:12]}  Qg5 {[%clk 0:02:10]} 17. Rhe1 {[%clk 0:01:06]}  Qxd2+ {[%clk 0:02:03]} 18. Kxd2 {[%clk 0:01:07]}  g6 {[%clk 0:02:01]} 19. f3 {[%clk 0:00:51]}  Kf8 {[%clk 0:01:59]} 20. Ne2 {[%clk 0:00:48]}  Nb6 {[%clk 0:01:51]} 21. b3 {[%clk 0:00:47]}  Nc8 {[%clk 0:01:50]} 22. Nf4 {[%clk 0:00:45]}  Nd6 {[%clk 0:01:49]} 23. c3 {[%clk 0:00:36]}  a5 {[%clk 0:01:47]} 24. a4 {[%clk 0:00:33]}  Rxe1 {[%clk 0:01:42]} 25. Rxe1 {[%clk 0:00:33]}  Re8 {[%clk 0:01:31]} 26. Rxe8+ {[%clk 0:00:28]}  Kxe8 {[%clk 0:01:32]} 27. Nd3 {[%clk 0:00:27]}  Ke7 {[%clk 0:01:24]} 28. Ne5 {[%clk 0:00:23]}  Ke6 {[%clk 0:01:22]} 29. Kd3 {[%clk 0:00:19]}  g5 {[%clk 0:01:20]} 30. Ng4 {[%clk 0:00:14]}  h5 {[%clk 0:01:18]} 31. Ne3 {[%clk 0:00:14]}  f6 {[%clk 0:01:13]} 32. c4 {[%clk 0:00:14]}  h4 {[%clk 0:01:04]} 33. c5 {[%clk 0:00:13]}  Nf5 {[%clk 0:01:00]} 34. Nc2 {[%clk 0:00:08]}  h3 {[%clk 0:00:52]} 35. gxh3 {[%clk 0:00:06]}  Nh4 {[%clk 0:00:52]} 36. Ke3 {[%clk 0:00:06]}  Kf5 {[%clk 0:00:51]} 37. b4 {[%clk 0:00:05]}  axb4 {[%clk 0:00:49]} 38. Nxb4 {[%clk 0:00:06]}  Ng6 {[%clk 0:00:45]} 39. a5 {[%clk 0:00:06]}  Ne7 {[%clk 0:00:40]} 40. a6 {[%clk 0:00:06]}  bxa6 {[%clk 0:00:37]} 41. Nxa6 {[%clk 0:00:07]}  Ke6 {[%clk 0:00:32]} 42. Nb8 {[%clk 0:00:07]}  Kf5 {[%clk 0:00:28]} 43. Kd3 {[%clk 0:00:07]}  Kf4 {[%clk 0:00:27]} 44. Ke2 {[%clk 0:00:07]}  f5 {[%clk 0:00:24]} 45. Kf2 {[%clk 0:00:07]}  g4 {[%clk 0:00:14]} 46. fxg4 {[%clk 0:00:06]}  fxg4 {[%clk 0:00:15]} 47. h4 {[%clk 0:00:06]}  Ke4 {[%clk 0:00:08]} 48. h5 {[%clk 0:00:06]}  Kf5 {[%clk 0:00:08]} 49. Kg3 {[%clk 0:00:04]}  Kg5 {[%clk 0:00:08]} 50. h6 {[%clk 0:00:04]}  Kxh6 {[%clk 0:00:08]} 51. Kxg4 {[%clk 0:00:05]}  Kg6 {[%clk 0:00:09]} 52. Kf4 {[%clk 0:00:05]}  Kf6 {[%clk 0:00:08]} 53. h3 {[%clk 0:00:05]}  Ng6+ {[%clk 0:00:08]} 54. Kg4 {[%clk 0:00:05]}  Ne7 {[%clk 0:00:07]} 55. h4 {[%clk 0:00:05]}  Kg6 {[%clk 0:00:07]} 56. Kf4 {[%clk 0:00:04]}  Kf6 {[%clk 0:00:07]} 57. h5 {[%clk 0:00:04]}  Ke6 {[%clk 0:00:03]} 58. Kg5 {[%clk 0:00:04]}  Nf5 {[%clk 0:00:00]} 59. Nxc6 {[%clk 0:00:04]} 1-0


[Site "https://www.chess.com"]

[Event "Titled Tuesday Blitz November 14 Late 2023"]
[White "Kanyamarala, Tarun"]
[Black "Senft, Sean"]
[WhiteFideId "45004714"]
[BlackFideId "2044960"]
[WhiteElo "2504"]
[BlackElo "2283"]
[Result "1-0"]
[Round "2"]
[TimeControl "180+1"]
[Date "2023.11.14"]
[WhiteClock "0:00:08"]
[BlackClock "0:00:06"]
[Board "139"]

1. d4 {[%clk 0:03:00]}  d5 {[%clk 0:02:56]} 2. Nc3 {[%clk 0:02:59]}  Nf6 {[%clk 0:02:56]} 3. Bf4 {[%clk 0:02:59]}  c6 {[%clk 0:02:55]} 4. e3 {[%clk 0:02:58]}  Bf5 {[%clk 0:02:53]} 5. f3 {[%clk 0:02:56]}  e6 {[%clk 0:02:51]} 6. g4 {[%clk 0:02:54]}  Bg6 {[%clk 0:02:51]} 7. Bd3 {[%clk 0:02:53]}  Bxd3 {[%clk 0:02:50]} 8. Qxd3 {[%clk 0:02:52]}  Nbd7 {[%clk 0:02:48]} 9. Nge2 {[%clk 0:02:50]}  Be7 {[%clk 0:02:44]} 10. h4 {[%clk 0:02:50]}  Qb6 {[%clk 0:02:32]} 11. Kf2 {[%clk 0:02:36]}  O-O {[%clk 0:02:31]} 12. h5 {[%clk 0:02:28]}  Ne8 {[%clk 0:02:30]} 13. g5 {[%clk 0:02:21]}  Bd6 {[%clk 0:02:27]} 14. g6 {[%clk 0:02:15]}  h6 {[%clk 0:01:56]} 15. gxf7+ {[%clk 0:01:52]}  Rxf7 {[%clk 0:01:56]} 16. Rhg1 {[%clk 0:01:40]}  Bxf4 {[%clk 0:01:53]} 17. Nxf4 {[%clk 0:01:39]}  e5 {[%clk 0:01:45]} 18. Nfxd5 {[%clk 0:01:28]}  cxd5 {[%clk 0:01:40]} 19. Nxd5 {[%clk 0:01:28]}  Qc6 {[%clk 0:01:30]} 20. c4 {[%clk 0:01:25]}  Ndf6 {[%clk 0:01:20]} 21. Rg6 {[%clk 0:01:22]}  e4 {[%clk 0:01:09]} 22. Qb3 {[%clk 0:01:10]}  Qd6 {[%clk 0:00:57]} 23. f4 {[%clk 0:01:01]}  Qf8 {[%clk 0:00:45]} 24. Nc3 {[%clk 0:00:45]}  Nxh5 {[%clk 0:00:40]} 25. c5 {[%clk 0:00:45]}  Kh7 {[%clk 0:00:38]} 26. Rag1 {[%clk 0:00:39]}  Nef6 {[%clk 0:00:27]} 27. Qe6 {[%clk 0:00:36]}  Re8 {[%clk 0:00:23]} 28. Qf5 {[%clk 0:00:35]}  Kh8 {[%clk 0:00:24]} 29. Ke2 {[%clk 0:00:23]}  Qe7 {[%clk 0:00:19]} 30. Rh1 {[%clk 0:00:17]}  Qd7 {[%clk 0:00:19]} 31. Rxh5 {[%clk 0:00:13]}  Nxh5 {[%clk 0:00:19]} 32. Qxh5 {[%clk 0:00:14]}  Re6 {[%clk 0:00:14]} 33. Rg1 {[%clk 0:00:11]}  Ref6 {[%clk 0:00:13]} 34. Kd2 {[%clk 0:00:10]}  Qe8 {[%clk 0:00:11]} 35. Qd5 {[%clk 0:00:09]}  b6 {[%clk 0:00:11]} 36. b4 {[%clk 0:00:08]}  bxc5 {[%clk 0:00:11]} 37. bxc5 {[%clk 0:00:08]}  Ra6 {[%clk 0:00:12]} 38. Rb1 {[%clk 0:00:07]}  Rd7 {[%clk 0:00:09]} 39. Qe5 {[%clk 0:00:07]}  Qd8 {[%clk 0:00:09]} 40. Rb8 {[%clk 0:00:07]}  Kh7 {[%clk 0:00:05]} 41. Rxd8 {[%clk 0:00:07]}  Rxd8 {[%clk 0:00:06]} 42. Qf5+ {[%clk 0:00:07]}  Kh8 {[%clk 0:00:07]} 43. Qxe4 {[%clk 0:00:07]}  Rb8 {[%clk 0:00:07]} 44. Qc2 {[%clk 0:00:08]}  Rg6 {[%clk 0:00:07]} 45. Kd3 {[%clk 0:00:07]}  Re8 {[%clk 0:00:05]} 46. d5 {[%clk 0:00:08]}  Rg3 {[%clk 0:00:05]} 47. Qd2 {[%clk 0:00:08]}  h5 {[%clk 0:00:06]} 48. d6 {[%clk 0:00:08]}  h4 {[%clk 0:00:06]} 49. c6 {[%clk 0:00:09]}  h3 {[%clk 0:00:07]} 50. d7 {[%clk 0:00:09]}  Rg8 {[%clk 0:00:07]} 51. c7 {[%clk 0:00:09]}  Rg2 {[%clk 0:00:08]} 52. Qd1 {[%clk 0:00:08]}  h2 {[%clk 0:00:06]} 53. Qh1 {[%clk 0:00:08]} 1-0


[Site "https://www.chess.com"]

[Event "Titled Tuesday Blitz November 14 Late 2023"]
[White "FM_Kappeler"]
[Black "Ballester Llagaria, Luis Eduardo"]
[BlackFideId "2297620"]
[WhiteElo "2278"]
[BlackElo "2503"]
[Result "1-0"]
[Round "2"]
[TimeControl "180+1"]
[Date "2023.11.14"]
[WhiteClock "0:00:07"]
[BlackClock "0:00:02"]
[Board "141"]

1. d4 {[%clk 0:03:00]}  d5 {[%clk 0:02:54]} 2. c4 {[%clk 0:03:00]}  dxc4 {[%clk 0:02:54]} 3. e3 {[%clk 0:02:59]}  Nf6 {[%clk 0:02:51]} 4. Bxc4 {[%clk 0:02:59]}  e6 {[%clk 0:02:51]} 5. Nf3 {[%clk 0:02:59]}  a6 {[%clk 0:02:52]} 6. O-O {[%clk 0:02:58]}  b5 {[%clk 0:02:52]} 7. Bd3 {[%clk 0:02:58]}  Bb7 {[%clk 0:02:52]} 8. Qe2 {[%clk 0:02:50]}  c5 {[%clk 0:02:46]} 9. Rd1 {[%clk 0:02:49]}  Nbd7 {[%clk 0:02:46]} 10. Nc3 {[%clk 0:02:41]}  Qc7 {[%clk 0:02:22]} 11. a3 {[%clk 0:02:31]}  cxd4 {[%clk 0:02:12]} 12. exd4 {[%clk 0:02:30]}  Be7 {[%clk 0:02:11]} 13. Bg5 {[%clk 0:02:27]}  O-O {[%clk 0:02:11]} 14. Rac1 {[%clk 0:02:27]}  Qb6 {[%clk 0:02:08]} 15. d5 {[%clk 0:02:15]}  Rfe8 {[%clk 0:01:49]} 16. dxe6 {[%clk 0:02:02]}  Qxe6 {[%clk 0:01:50]} 17. Qxe6 {[%clk 0:02:01]}  fxe6 {[%clk 0:01:51]} 18. Nd4 {[%clk 0:01:51]}  Nc5 {[%clk 0:01:48]} 19. Bb1 {[%clk 0:01:42]}  Bf8 {[%clk 0:01:39]} 20. Re1 {[%clk 0:01:38]}  Rad8 {[%clk 0:01:34]} 21. Rcd1 {[%clk 0:01:30]}  Kf7 {[%clk 0:01:02]} 22. Ba2 {[%clk 0:01:14]}  Bc8 {[%clk 0:00:48]} 23. b4 {[%clk 0:01:04]}  Nb7 {[%clk 0:00:48]} 24. Ne4 {[%clk 0:00:48]}  Nxe4 {[%clk 0:00:42]} 25. Rxe4 {[%clk 0:00:43]}  Rd6 {[%clk 0:00:35]} 26. Rde1 {[%clk 0:00:38]}  h6 {[%clk 0:00:33]} 27. Bf4 {[%clk 0:00:35]}  Rb6 {[%clk 0:00:31]} 28. h4 {[%clk 0:00:28]}  Nd8 {[%clk 0:00:31]} 29. Nf3 {[%clk 0:00:22]}  Bb7 {[%clk 0:00:27]} 30. Ne5+ {[%clk 0:00:22]}  Kg8 {[%clk 0:00:28]} 31. Rd4 {[%clk 0:00:21]}  Nc6 {[%clk 0:00:26]} 32. Nxc6 {[%clk 0:00:16]}  Rxc6 {[%clk 0:00:27]} 33. Rd7 {[%clk 0:00:15]}  Bc8 {[%clk 0:00:24]} 34. Ra7 {[%clk 0:00:14]}  Rc2 {[%clk 0:00:23]} 35. Bb3 {[%clk 0:00:12]}  Rc3 {[%clk 0:00:24]} 36. Rb1 {[%clk 0:00:12]}  Kh8 {[%clk 0:00:17]} 37. Be5 {[%clk 0:00:12]}  Rd3 {[%clk 0:00:16]} 38. Bc2 {[%clk 0:00:12]}  Rd7 {[%clk 0:00:16]} 39. Ra8 {[%clk 0:00:11]}  Rdd8 {[%clk 0:00:14]} 40. Bg6 {[%clk 0:00:10]}  Re7 {[%clk 0:00:13]} 41. Rc1 {[%clk 0:00:10]}  Red7 {[%clk 0:00:03]} 42. Rcxc8 {[%clk 0:00:10]}  Rd1+ {[%clk 0:00:04]} 43. Kh2 {[%clk 0:00:10]}  Rxc8 {[%clk 0:00:03]} 44. Rxc8 {[%clk 0:00:10]}  Kg8 {[%clk 0:00:04]} 45. Ra8 {[%clk 0:00:08]}  Rd5 {[%clk 0:00:05]} 46. Bf4 {[%clk 0:00:07]}  Rd4 {[%clk 0:00:05]} 47. Be3 {[%clk 0:00:07]}  Rd6 {[%clk 0:00:05]} 48. Bc5 {[%clk 0:00:07]}  Rd8 {[%clk 0:00:02]} 49. Rxd8 {[%clk 0:00:07]} 1-0


[Site "https://www.chess.com"]

[Event "Titled Tuesday Blitz November 14 Late 2023"]
[White "Hajiyev, Kanan"]
[Black "ilya2700"]
[WhiteFideId "13404148"]
[WhiteElo "2495"]
[BlackElo "2268"]
[Result "1-0"]
[Round "2"]
[TimeControl "180+1"]
[Date "2023.11.14"]
[WhiteClock "0:02:11"]
[BlackClock "0:00:00"]
[Board "146"]

1. d4 {[%clk 0:03:00]}  Nf6 {[%clk 0:02:59]} 2. c4 {[%clk 0:03:01]}  g6 {[%clk 0:03:00]} 3. Nf3 {[%clk 0:03:02]}  Bg7 {[%clk 0:03:00]} 4. g3 {[%clk 0:03:02]}  O-O {[%clk 0:03:01]} 5. Bg2 {[%clk 0:03:03]}  d6 {[%clk 0:03:01]} 6. O-O {[%clk 0:03:04]}  c5 {[%clk 0:03:02]} 7. b3 {[%clk 0:03:05]}  a5 {[%clk 0:02:54]} 8. Nc3 {[%clk 0:03:04]}  Bf5 {[%clk 0:02:44]} 9. Bb2 {[%clk 0:03:04]}  Ne4 {[%clk 0:02:35]} 10. Nh4 {[%clk 0:03:04]}  Nxc3 {[%clk 0:02:24]} 11. Bxc3 {[%clk 0:03:05]}  Nc6 {[%clk 0:02:23]} 12. Nxf5 {[%clk 0:03:04]}  gxf5 {[%clk 0:02:24]} 13. e3 {[%clk 0:03:04]}  e6 {[%clk 0:01:59]} 14. Qd2 {[%clk 0:03:03]}  a4 {[%clk 0:01:53]} 15. Rfd1 {[%clk 0:02:52]}  axb3 {[%clk 0:01:43]} 16. axb3 {[%clk 0:02:53]}  Qb6 {[%clk 0:01:37]} 17. dxc5 {[%clk 0:02:43]}  dxc5 {[%clk 0:01:06]} 18. Bxg7 {[%clk 0:02:43]}  Kxg7 {[%clk 0:01:07]} 19. Qc3+ {[%clk 0:02:41]}  Kg8 {[%clk 0:01:04]} 20. h4 {[%clk 0:02:41]}  Qb4 {[%clk 0:00:25]} 21. Qf6 {[%clk 0:02:41]}  Qxb3 {[%clk 0:00:21]} 22. h5 {[%clk 0:02:41]}  Rfd8 {[%clk 0:00:03]} 23. Rxd8+ {[%clk 0:02:09]}  Rxd8 {[%clk 0:00:03]} 24. h6 {[%clk 0:02:10]}  Rd1+ {[%clk 0:00:00]} 25. Bf1 {[%clk 0:02:11]} 1-0


[Site "https://www.chess.com"]

[Event "Titled Tuesday Blitz November 14 Late 2023"]
[White "Kopacz, Grzegorz"]
[Black "Kanyamarala, Trisha"]
[WhiteFideId "1109880"]
[BlackFideId "45004722"]
[WhiteElo "2266"]
[BlackElo "2495"]
[Result "1/2-1/2"]
[Round "2"]
[TimeControl "180+1"]
[Date "2023.11.14"]
[WhiteClock "0:00:34"]
[BlackClock "0:00:24"]
[Board "147"]

1. c4 {[%clk 0:02:56]}  e5 {[%clk 0:02:59]} 2. Nc3 {[%clk 0:02:56]}  Bb4 {[%clk 0:02:59]} 3. Qb3 {[%clk 0:02:55]}  a5 {[%clk 0:02:57]} 4. a3 {[%clk 0:02:54]}  Bc5 {[%clk 0:02:52]} 5. e3 {[%clk 0:02:53]}  Nc6 {[%clk 0:02:51]} 6. Nge2 {[%clk 0:02:53]}  d6 {[%clk 0:02:49]} 7. g3 {[%clk 0:02:53]}  Nf6 {[%clk 0:02:48]} 8. Bg2 {[%clk 0:02:52]}  O-O {[%clk 0:02:46]} 9. O-O {[%clk 0:02:51]}  Rb8 {[%clk 0:02:43]} 10. Bxc6 {[%clk 0:02:48]}  bxc6 {[%clk 0:02:33]} 11. Qxb8 {[%clk 0:02:48]}  Bb6 {[%clk 0:02:33]} 12. Na4 {[%clk 0:02:40]}  Qe7 {[%clk 0:01:57]} 13. Nxb6 {[%clk 0:02:37]}  cxb6 {[%clk 0:01:57]} 14. Qxb6 {[%clk 0:02:36]}  Bh3 {[%clk 0:01:56]} 15. d3 {[%clk 0:02:21]}  Rc8 {[%clk 0:01:42]} 16. Bd2 {[%clk 0:02:16]}  Qe6 {[%clk 0:01:40]} 17. f3 {[%clk 0:02:13]}  Bxf1 {[%clk 0:01:34]} 18. Rxf1 {[%clk 0:02:12]}  d5 {[%clk 0:01:34]} 19. e4 {[%clk 0:02:04]}  Qh3 {[%clk 0:01:26]} 20. Qf2 {[%clk 0:01:59]}  Rd8 {[%clk 0:01:20]} 21. Bxa5 {[%clk 0:01:58]}  Ra8 {[%clk 0:01:19]} 22. Bb4 {[%clk 0:01:56]}  h5 {[%clk 0:01:18]} 23. cxd5 {[%clk 0:01:53]}  cxd5 {[%clk 0:01:18]} 24. Rc1 {[%clk 0:01:53]}  dxe4 {[%clk 0:01:16]} 25. dxe4 {[%clk 0:01:52]}  Rd8 {[%clk 0:01:14]} 26. Be7 {[%clk 0:01:43]}  Rd2 {[%clk 0:01:14]} 27. Bxf6 {[%clk 0:01:43]}  gxf6 {[%clk 0:01:14]} 28. b4 {[%clk 0:01:35]}  h4 {[%clk 0:01:11]} 29. Rb1 {[%clk 0:01:22]}  Qd7 {[%clk 0:01:09]} 30. b5 {[%clk 0:01:16]}  h3 {[%clk 0:01:03]} 31. g4 {[%clk 0:01:01]}  Qd3 {[%clk 0:00:53]} 32. Re1 {[%clk 0:00:58]}  Qxb5 {[%clk 0:00:50]} 33. Kf1 {[%clk 0:00:54]}  Rd3 {[%clk 0:00:40]} 34. Qg3 {[%clk 0:00:40]}  Qb3 {[%clk 0:00:34]} 35. Kf2 {[%clk 0:00:39]}  Qb6+ {[%clk 0:00:34]} 36. Kf1 {[%clk 0:00:38]}  Qb3 {[%clk 0:00:34]} 37. Ng1 {[%clk 0:00:36]}  Qc4 {[%clk 0:00:24]} 38. Ne2 {[%clk 0:00:34]}  Qb3 {[%clk 0:00:24]} 1/2-1/2


[Site "https://www.chess.com"]

[Event "Titled Tuesday Blitz November 14 Late 2023"]
[White "Kuznecovs, Nikita"]
[Black "Dodaro, Mattia"]
[WhiteFideId "11604557"]
[BlackFideId "28583400"]
[WhiteElo "2493"]
[BlackElo "2242"]
[Result "1-0"]
[Round "2"]
[TimeControl "180+1"]
[Date "2023.11.14"]
[WhiteClock "0:00:26"]
[BlackClock "0:00:17"]
[Board "149"]

1. Nf3 {[%clk 0:03:00]}  Nf6 {[%clk 0:02:55]} 2. c4 {[%clk 0:02:54]}  d6 {[%clk 0:02:56]} 3. d4 {[%clk 0:02:54]}  g6 {[%clk 0:02:57]} 4. g3 {[%clk 0:02:54]}  Bg7 {[%clk 0:02:57]} 5. Bg2 {[%clk 0:02:55]}  O-O {[%clk 0:02:58]} 6. O-O {[%clk 0:02:56]}  Nbd7 {[%clk 0:02:57]} 7. Nc3 {[%clk 0:02:55]}  c6 {[%clk 0:02:57]} 8. e4 {[%clk 0:02:55]}  e5 {[%clk 0:02:56]} 9. h3 {[%clk 0:02:55]}  Qc7 {[%clk 0:02:56]} 10. Be3 {[%clk 0:02:55]}  Re8 {[%clk 0:02:56]} 11. Qc2 {[%clk 0:02:55]}  exd4 {[%clk 0:02:45]} 12. Nxd4 {[%clk 0:02:54]}  Nc5 {[%clk 0:02:35]} 13. Rfe1 {[%clk 0:02:49]}  Be6 {[%clk 0:02:34]} 14. Nxe6 {[%clk 0:02:34]}  Nxe6 {[%clk 0:02:33]} 15. f4 {[%clk 0:02:30]}  Rad8 {[%clk 0:02:23]} 16. Rad1 {[%clk 0:02:28]}  Qa5 {[%clk 0:02:22]} 17. Bf3 {[%clk 0:02:11]}  Nd7 {[%clk 0:02:12]} 18. a3 {[%clk 0:01:58]}  Bxc3 {[%clk 0:02:11]} 19. bxc3 {[%clk 0:01:58]}  Ndc5 {[%clk 0:02:06]} 20. f5 {[%clk 0:01:38]}  Ng7 {[%clk 0:02:00]} 21. Bg5 {[%clk 0:01:18]}  Rd7 {[%clk 0:01:56]} 22. g4 {[%clk 0:01:14]}  a6 {[%clk 0:01:35]} 23. h4 {[%clk 0:00:39]}  Qxa3 {[%clk 0:01:34]} 24. h5 {[%clk 0:00:35]}  Qa5 {[%clk 0:01:28]} 25. h6 {[%clk 0:00:34]}  Nge6 {[%clk 0:01:15]} 26. fxe6 {[%clk 0:00:34]}  Nxe6 {[%clk 0:01:15]} 27. Bf6 {[%clk 0:00:34]}  Ng5 {[%clk 0:00:49]} 28. Bg2 {[%clk 0:00:34]}  Re6 {[%clk 0:00:47]} 29. e5 {[%clk 0:00:31]}  Qc5+ {[%clk 0:00:36]} 30. Qf2 {[%clk 0:00:30]}  Rxf6 {[%clk 0:00:17]} 31. Qxc5 {[%clk 0:00:26]} 1-0


[Site "https://www.chess.com"]

[Event "Titled Tuesday Blitz November 14 Late 2023"]
[White "Rich, Albert J"]
[Black "Golubenko, Valentina"]
[WhiteFideId "2028735"]
[BlackFideId "4501993"]
[WhiteElo "2492"]
[BlackElo "2231"]
[Result "1-0"]
[Round "2"]
[TimeControl "180+1"]
[Date "2023.11.14"]
[WhiteClock "0:00:02"]
[BlackClock "0:00:00"]
[Board "150"]

1. d4 {[%clk 0:03:00]}  Nf6 {[%clk 0:02:59]} 2. Nc3 {[%clk 0:03:00]}  c5 {[%clk 0:02:59]} 3. d5 {[%clk 0:03:00]}  d6 {[%clk 0:02:54]} 4. e4 {[%clk 0:03:00]}  g6 {[%clk 0:02:53]} 5. Bb5+ {[%clk 0:02:59]}  Bd7 {[%clk 0:02:52]} 6. a4 {[%clk 0:03:00]}  a6 {[%clk 0:02:52]} 7. Be2 {[%clk 0:02:59]}  Bg7 {[%clk 0:02:50]} 8. f4 {[%clk 0:02:59]}  e6 {[%clk 0:02:49]} 9. dxe6 {[%clk 0:02:55]}  Bxe6 {[%clk 0:02:48]} 10. Nf3 {[%clk 0:02:54]}  O-O {[%clk 0:02:47]} 11. O-O {[%clk 0:02:52]}  Nc6 {[%clk 0:02:47]} 12. f5 {[%clk 0:02:52]}  gxf5 {[%clk 0:02:42]} 13. Bg5 {[%clk 0:02:48]}  Qc7 {[%clk 0:02:11]} 14. Nh4 {[%clk 0:02:46]}  Nxe4 {[%clk 0:02:03]} 15. Nxe4 {[%clk 0:02:40]}  fxe4 {[%clk 0:02:03]} 16. Nf5 {[%clk 0:02:39]}  Bxf5 {[%clk 0:02:02]} 17. Rxf5 {[%clk 0:02:39]}  Nd4 {[%clk 0:01:58]} 18. Bg4 {[%clk 0:02:37]}  Rae8 {[%clk 0:01:42]} 19. c3 {[%clk 0:02:31]}  Nc6 {[%clk 0:01:35]} 20. Qd2 {[%clk 0:02:23]}  Ne5 {[%clk 0:01:30]} 21. Bh3 {[%clk 0:02:17]}  f6 {[%clk 0:01:22]} 22. Bf4 {[%clk 0:02:12]}  Nc4 {[%clk 0:01:20]} 23. Qe2 {[%clk 0:02:03]}  Qf7 {[%clk 0:01:19]} 24. Rf1 {[%clk 0:01:58]}  e3 {[%clk 0:01:16]} 25. Bg4 {[%clk 0:01:53]}  Nd2 {[%clk 0:01:05]} 26. Rd1 {[%clk 0:01:41]}  Kh8 {[%clk 0:01:04]} 27. Bh5 {[%clk 0:01:29]}  Qe6 {[%clk 0:01:04]} 28. g4 {[%clk 0:01:29]}  Re7 {[%clk 0:01:02]} 29. Re1 {[%clk 0:01:17]}  Qe4 {[%clk 0:00:39]} 30. Bxd6 {[%clk 0:01:03]}  Bh6 {[%clk 0:00:25]} 31. Bxc5 {[%clk 0:00:47]}  Rfe8 {[%clk 0:00:18]} 32. Bxe7 {[%clk 0:00:44]}  Rxe7 {[%clk 0:00:18]} 33. Rxf6 {[%clk 0:00:43]}  Bg5 {[%clk 0:00:17]} 34. Rf5 {[%clk 0:00:38]}  Bf4 {[%clk 0:00:17]} 35. Rf1 {[%clk 0:00:17]}  Nxf1 {[%clk 0:00:16]} 36. Qxf1 {[%clk 0:00:17]}  e2 {[%clk 0:00:16]} 37. Qe1 {[%clk 0:00:12]}  Be3+ {[%clk 0:00:16]} 38. Rf2 {[%clk 0:00:12]}  Bxf2+ {[%clk 0:00:16]} 39. Kxf2 {[%clk 0:00:12]}  Qe3+ {[%clk 0:00:14]} 40. Kg2 {[%clk 0:00:11]}  Qe4+ {[%clk 0:00:13]} 41. Kg3 {[%clk 0:00:10]}  Qe3+ {[%clk 0:00:12]} 42. Kh4 {[%clk 0:00:09]}  Re6 {[%clk 0:00:11]} 43. c4 {[%clk 0:00:09]}  h6 {[%clk 0:00:11]} 44. b4 {[%clk 0:00:06]}  Qg5+ {[%clk 0:00:12]} 45. Kh3 {[%clk 0:00:06]}  Re3+ {[%clk 0:00:12]} 46. Kg2 {[%clk 0:00:06]}  Qf4 {[%clk 0:00:13]} 47. b5 {[%clk 0:00:04]}  Qf3+ {[%clk 0:00:13]} 48. Kg1 {[%clk 0:00:04]}  Qf4 {[%clk 0:00:14]} 49. bxa6 {[%clk 0:00:03]}  Re4 {[%clk 0:00:14]} 50. axb7 {[%clk 0:00:02]}  Qe3+ {[%clk 0:00:14]} 51. Kg2 {[%clk 0:00:02]}  Re8 {[%clk 0:00:13]} 52. a5 {[%clk 0:00:02]}  Qe4+ {[%clk 0:00:12]} 53. Kg1 {[%clk 0:00:02]}  Qe3+ {[%clk 0:00:13]} 54. Kg2 {[%clk 0:00:02]}  Qe4+ {[%clk 0:00:13]} 55. Kg1 {[%clk 0:00:02]}  Qxb7 {[%clk 0:00:13]} 56. Bxe8 {[%clk 0:00:02]}  Qa7+ {[%clk 0:00:12]} 57. Kg2 {[%clk 0:00:01]}  Qa8+ {[%clk 0:00:13]} 58. Kg3 {[%clk 0:00:01]}  Qxe8 {[%clk 0:00:12]} 59. Kf2 {[%clk 0:00:01]}  Qf8+ {[%clk 0:00:11]} 60. Kxe2 {[%clk 0:00:01]}  Qe7+ {[%clk 0:00:12]} 61. Kd2 {[%clk 0:00:01]}  Qd6+ {[%clk 0:00:12]} 62. Kc2 {[%clk 0:00:01]}  Qc5 {[%clk 0:00:11]} 63. Qc3+ {[%clk 0:00:02]}  Kh7 {[%clk 0:00:09]} 64. Kb3 {[%clk 0:00:02]}  Qc6 {[%clk 0:00:08]} 65. Qe5 {[%clk 0:00:01]}  Qf3+ {[%clk 0:00:07]} 66. Kb4 {[%clk 0:00:01]}  Qxg4 {[%clk 0:00:07]} 67. a6 {[%clk 0:00:01]}  Qd1 {[%clk 0:00:06]} 68. a7 {[%clk 0:00:01]}  Qb1+ {[%clk 0:00:07]} 69. Kc5 {[%clk 0:00:02]}  Qg1+ {[%clk 0:00:05]} 70. Qd4 {[%clk 0:00:02]}  Qg5+ {[%clk 0:00:00]} 71. Kb4 {[%clk 0:00:02]} 1-0


[Site "https://www.chess.com"]